[Event "Early-Titled-Tuesday-Blitz-January-23-2024"]
[Site "Chess.com"]
[Date "2024.01.23"]
[Round "4"]
[White "JimDiGrease"]
[Black "Sadykov_Ramil"]
[Result "1-0"]
[WhiteElo "2963"]
[BlackElo "2605"]
[TimeControl "180+1"]
[EndTime "8:38:10 PST"]
[Termination "JimDiGrease won by resignation"]

1. d4 {[%clk 0:03:00.9]} 1... d5 {[%clk 0:02:54.8]} 2. c4 {[%clk 0:03:00.2]}
2... e6 {[%clk 0:02:53.2]} 3. Nf3 {[%clk 0:03:00.6]} 3... Nf6 {[%clk 0:02:52.2]}
4. Qc2 {[%clk 0:03:01]} 4... Be7 {[%clk 0:02:50.8]} 5. cxd5 {[%clk 0:03:01.1]}
5... exd5 {[%clk 0:02:50.6]} 6. Bf4 {[%clk 0:03:01.7]} 6... c6 {[%clk
0:02:48.6]} 7. e3 {[%clk 0:03:02.4]} 7... Nbd7 {[%clk 0:02:36.1]} 8. Nc3 {[%clk
0:03:02.3]} 8... Nf8 {[%clk 0:02:29.5]} 9. h3 {[%clk 0:02:50.3]} 9... Ne6 {[%clk
0:02:28.7]} 10. Bh2 {[%clk 0:02:49.5]} 10... O-O {[%clk 0:02:23]} 11. Bd3 {[%clk
0:02:49.5]} 11... Re8 {[%clk 0:02:21.3]} 12. O-O {[%clk 0:02:49.1]} 12... g6
{[%clk 0:02:19]} 13. Rab1 {[%clk 0:02:48.9]} 13... a5 {[%clk 0:02:18.4]} 14. a3
{[%clk 0:02:48.6]} 14... Ng7 {[%clk 0:02:14.6]} 15. b4 {[%clk 0:02:48.6]} 15...
axb4 {[%clk 0:02:14.6]} 16. axb4 {[%clk 0:02:49.5]} 16... Bf5 {[%clk 0:02:12.4]}
17. b5 {[%clk 0:02:49.5]} 17... Bxd3 {[%clk 0:02:06.7]} 18. Qxd3 {[%clk
0:02:50.4]} 18... Ra3 {[%clk 0:02:05.8]} 19. bxc6 {[%clk 0:02:45]} 19... bxc6
{[%clk 0:02:05.8]} 20. Rfc1 {[%clk 0:02:33.4]} 20... Ne6 {[%clk 0:01:41]} 21.
Qc2 {[%clk 0:02:31.8]} 21... Qa5 {[%clk 0:01:15.4]} 22. Ne5 {[%clk 0:02:15.1]}
22... Rc8 {[%clk 0:01:01.3]} 23. Rb7 {[%clk 0:01:26.6]} 23... Qd8 {[%clk
0:00:51.7]} 24. Nb5 {[%clk 0:01:12.9]} 24... Ra6 {[%clk 0:00:19.8]} 25. Na7
{[%clk 0:01:12.6]} 25... Bf8 {[%clk 0:00:10.7]} 26. Nxc8 {[%clk 0:01:05.2]}
26... Qxc8 {[%clk 0:00:11.6]} 27. Rxf7 {[%clk 0:01:02.7]} 27... Ne4 {[%clk
0:00:08.4]} 28. Rb1 {[%clk 0:00:50.1]} 28... Bd6 {[%clk 0:00:05.3]} 29. Rfb7
{[%clk 0:00:48.5]} 29... Qa8 {[%clk 0:00:02.8]} 30. Nd3 {[%clk 0:00:44.5]} 30...
Ra2 {[%clk 0:00:02.8]} 31. Qc1 {[%clk 0:00:39.7]} 31... Bxh2+ {[%clk 0:00:02.7]}
32. Kxh2 {[%clk 0:00:40.6]} 32... Nf8 {[%clk 0:00:03.3]} 33. Rb8 {[%clk
0:00:39.5]} 33... Qa7 {[%clk 0:00:03.7]} 34. Qxc6 {[%clk 0:00:36.7]} 34... Nxf2
{[%clk 0:00:03]} 35. Qxd5+ {[%clk 0:00:36.7]} 35... Kh8 {[%clk 0:00:02.7]} 36.
Rxf8+ {[%clk 0:00:36.1]} 1-0

[Event "Early-Titled-Tuesday-Blitz-January-23-2024"]
[Site "Chess.com"]
[Date "2024.01.23"]
[Round "4"]
[White "winniethepooh04"]
[Black "Crazy_girl99"]
[Result "1-0"]
[WhiteElo "2536"]
[BlackElo "2608"]
[TimeControl "180+1"]
[EndTime "8:38:11 PST"]
[Termination "winniethepooh04 won by resignation"]

1. d4 {[%clk 0:03:00.9]} 1... Nf6 {[%clk 0:02:59.7]} 2. Nf3 {[%clk 0:03:01.4]}
2... g6 {[%clk 0:02:59.1]} 3. Bf4 {[%clk 0:03:01.7]} 3... Bg7 {[%clk 0:02:59.8]}
4. e3 {[%clk 0:03:02.3]} 4... c5 {[%clk 0:02:59.2]} 5. c3 {[%clk 0:03:01.9]}
5... cxd4 {[%clk 0:02:58.8]} 6. exd4 {[%clk 0:03:01.8]} 6... d5 {[%clk
0:02:59.1]} 7. Be2 {[%clk 0:03:01.6]} 7... Nc6 {[%clk 0:02:59.4]} 8. h3 {[%clk
0:03:00.3]} 8... O-O {[%clk 0:02:59.6]} 9. Nbd2 {[%clk 0:03:00.9]} 9... Qb6
{[%clk 0:02:57.9]} 10. Qb3 {[%clk 0:03:00.4]} 10... Qxb3 {[%clk 0:02:51.6]} 11.
axb3 {[%clk 0:03:00.2]} 11... Bf5 {[%clk 0:02:48.5]} 12. O-O {[%clk 0:02:56]}
12... Ne4 {[%clk 0:02:45.1]} 13. b4 {[%clk 0:02:55.2]} 13... a6 {[%clk
0:02:43.1]} 14. Rfe1 {[%clk 0:02:46.4]} 14... f6 {[%clk 0:02:41.9]} 15. Bh2
{[%clk 0:02:45.5]} 15... e5 {[%clk 0:02:38.2]} 16. Nb3 {[%clk 0:02:45.2]} 16...
Rfe8 {[%clk 0:02:33.1]} 17. Na5 {[%clk 0:02:39.1]} 17... Nxa5 {[%clk 0:02:31.5]}
18. Rxa5 {[%clk 0:02:38.5]} 18... Rad8 {[%clk 0:02:28.2]} 19. Bf1 {[%clk
0:02:31.2]} 19... Kf8 {[%clk 0:02:12.3]} 20. b5 {[%clk 0:02:28.6]} 20... axb5
{[%clk 0:02:07.8]} 21. Rxb5 {[%clk 0:02:27.4]} 21... Re7 {[%clk 0:02:05.1]} 22.
Ra1 {[%clk 0:02:24.4]} 22... g5 {[%clk 0:01:38.7]} 23. Ra7 {[%clk 0:02:21.6]}
23... Bc8 {[%clk 0:01:36.1]} 24. Raa5 {[%clk 0:02:19.5]} 24... Nd6 {[%clk
0:01:19.1]} 25. Rxd5 {[%clk 0:02:13.4]} 25... Be6 {[%clk 0:01:17.1]} 26. dxe5
{[%clk 0:02:01.1]} 26... fxe5 {[%clk 0:01:07.2]} 27. Rd1 {[%clk 0:01:52.1]}
27... Bb3 {[%clk 0:01:04.8]} 28. Rd2 {[%clk 0:01:47.2]} 28... Ke8 {[%clk
0:01:00.4]} 29. Bxe5 {[%clk 0:01:43.5]} 29... Bxe5 {[%clk 0:00:52]} 30. Rxe5
{[%clk 0:01:42]} 30... Rxe5 {[%clk 0:00:43.3]} 31. Nxe5 {[%clk 0:01:42.9]} 31...
Ke7 {[%clk 0:00:41.8]} 32. Nf3 {[%clk 0:01:42.3]} 32... h6 {[%clk 0:00:41]} 33.
Nd4 {[%clk 0:01:39.7]} 33... Bf7 {[%clk 0:00:35.6]} 34. Nb5 {[%clk 0:01:37.9]}
34... Nxb5 {[%clk 0:00:24.7]} 35. Rxd8 {[%clk 0:01:37.9]} 35... Kxd8 {[%clk
0:00:25.3]} 36. Bxb5 {[%clk 0:01:38.1]} 36... Kc7 {[%clk 0:00:26]} 37. Kf1
{[%clk 0:01:37.7]} 37... Kd6 {[%clk 0:00:26.6]} 38. Ke2 {[%clk 0:01:36.2]} 38...
Kc5 {[%clk 0:00:27.2]} 39. Bd3 {[%clk 0:01:35.9]} 39... Bd5 {[%clk 0:00:27.5]}
40. g3 {[%clk 0:01:35.5]} 40... b5 {[%clk 0:00:27.8]} 41. Ke3 {[%clk 0:01:33.3]}
41... b4 {[%clk 0:00:28.2]} 42. cxb4+ {[%clk 0:01:32.7]} 42... Kxb4 {[%clk
0:00:29.1]} 43. Kd4 {[%clk 0:01:32.4]} 43... Bg2 {[%clk 0:00:29.3]} 44. Bf5
{[%clk 0:01:29.3]} 44... Kb3 {[%clk 0:00:28.8]} 45. Ke5 {[%clk 0:01:29.7]} 45...
h5 {[%clk 0:00:25]} 46. Kf6 {[%clk 0:01:27.6]} 46... g4 {[%clk 0:00:09.7]} 47.
hxg4 {[%clk 0:01:26.9]} 47... hxg4 {[%clk 0:00:10.6]} 48. Bxg4 {[%clk 0:01:27]}
48... Kxb2 {[%clk 0:00:10.9]} 49. f4 {[%clk 0:01:25.9]} 49... Kc3 {[%clk
0:00:11.6]} 50. Bf5 {[%clk 0:01:26.1]} 50... Kd4 {[%clk 0:00:11.6]} 51. Kg5
{[%clk 0:01:19.6]} 51... Ke3 {[%clk 0:00:11.8]} 52. g4 {[%clk 0:01:18.3]} 52...
Bd5 {[%clk 0:00:09.8]} 53. Bh7 {[%clk 0:01:15.5]} 53... Kf3 {[%clk 0:00:07.8]}
54. f5 {[%clk 0:01:15.5]} 54... Be4 {[%clk 0:00:08]} 55. Bg8 {[%clk 0:01:12.9]}
55... Kg3 {[%clk 0:00:08.5]} 56. Be6 {[%clk 0:01:12.6]} 1-0

[Event "Early-Titled-Tuesday-Blitz-January-23-2024"]
[Site "Chess.com"]
[Date "2024.01.23"]
[Round "4"]
[White "Artyom_ChessMate"]
[Black "Aygehovit1992"]
[Result "1-0"]
[WhiteElo "2539"]
[BlackElo "2704"]
[TimeControl "180+1"]
[EndTime "8:38:12 PST"]
[Termination "Artyom_ChessMate won by resignation"]

1. e4 {[%clk 0:03:00.9]} 1... c5 {[%clk 0:02:57.2]} 2. Nc3 {[%clk 0:03:00.8]}
2... Nc6 {[%clk 0:02:57.3]} 3. Bb5 {[%clk 0:03:00.3]} 3... Nd4 {[%clk
0:02:57.7]} 4. Nf3 {[%clk 0:03:00.5]} 4... a6 {[%clk 0:02:56.6]} 5. Bd3 {[%clk
0:03:00.5]} 5... e6 {[%clk 0:02:55.7]} 6. O-O {[%clk 0:03:00.8]} 6... Nc6 {[%clk
0:02:55.7]} 7. b3 {[%clk 0:03:01]} 7... g5 {[%clk 0:02:52.2]} 8. Bb2 {[%clk
0:02:59.5]} 8... Bg7 {[%clk 0:02:51.5]} 9. Na4 {[%clk 0:02:50.3]} 9... Bxb2
{[%clk 0:02:51.1]} 10. Nxb2 {[%clk 0:02:51.2]} 10... g4 {[%clk 0:02:51.1]} 11.
Ne1 {[%clk 0:02:50.6]} 11... h5 {[%clk 0:02:51.2]} 12. f4 {[%clk 0:02:50.7]}
12... b5 {[%clk 0:02:48.7]} 13. a4 {[%clk 0:02:50.3]} 13... b4 {[%clk
0:02:47.1]} 14. Nc4 {[%clk 0:02:50]} 14... d6 {[%clk 0:02:46.7]} 15. a5 {[%clk
0:02:41.5]} 15... Bb7 {[%clk 0:02:46.3]} 16. Qe2 {[%clk 0:02:19.4]} 16... Nd4
{[%clk 0:02:32.8]} 17. Qf2 {[%clk 0:02:19]} 17... h4 {[%clk 0:02:32.6]} 18. e5
{[%clk 0:02:03.8]} 18... Nb5 {[%clk 0:02:23.8]} 19. exd6 {[%clk 0:01:46.6]}
19... Nxd6 {[%clk 0:02:10.9]} 20. f5 {[%clk 0:01:39]} 20... exf5 {[%clk
0:01:58.9]} 21. Qxc5 {[%clk 0:01:31.2]} 21... Nxc4 {[%clk 0:01:51.9]} 22. Bxc4
{[%clk 0:01:08.8]} 22... Ne7 {[%clk 0:01:51.8]} 23. Nd3 {[%clk 0:01:07.3]} 23...
Rh6 {[%clk 0:00:51.5]} 24. Rae1 {[%clk 0:01:03.9]} 24... Rc8 {[%clk 0:00:48.7]}
25. Qxf5 {[%clk 0:00:57.8]} 25... Qd4+ {[%clk 0:00:46.7]} 26. Kh1 {[%clk
0:00:44.1]} 26... f6 {[%clk 0:00:26.6]} 27. Qe6 {[%clk 0:00:28.9]} 27... Rc7
{[%clk 0:00:13.1]} 28. Qf7+ {[%clk 0:00:29]} 28... Kd8 {[%clk 0:00:11.8]} 29.
Qf8+ {[%clk 0:00:29.4]} 29... Kd7 {[%clk 0:00:12.3]} 30. Rxe7+ {[%clk
0:00:29.5]} 30... Kc6 {[%clk 0:00:09.5]} 31. Rxc7+ {[%clk 0:00:29.5]} 31... Kxc7
{[%clk 0:00:10]} 32. Qxh6 {[%clk 0:00:24.6]} 32... h3 {[%clk 0:00:10.5]} 33.
Qf4+ {[%clk 0:00:24.7]} 1-0

[Event "Early-Titled-Tuesday-Blitz-January-23-2024"]
[Site "Chess.com"]
[Date "2024.01.23"]
[Round "4"]
[White "SHIVACalypso"]
[Black "Ali_rastbod"]
[Result "0-1"]
[WhiteElo "2436"]
[BlackElo "2715"]
[TimeControl "180+1"]
[EndTime "8:38:12 PST"]
[Termination "Ali_rastbod won by checkmate"]

1. Nf3 {[%clk 0:03:00.9]} 1... d5 {[%clk 0:02:58.8]} 2. c4 {[%clk 0:03:01.4]}
2... e6 {[%clk 0:02:58.1]} 3. g3 {[%clk 0:03:01.2]} 3... Nf6 {[%clk 0:02:58.6]}
4. Bg2 {[%clk 0:03:01.7]} 4... Be7 {[%clk 0:02:57.7]} 5. O-O {[%clk 0:03:01.3]}
5... O-O {[%clk 0:02:58.3]} 6. b3 {[%clk 0:03:01.5]} 6... c6 {[%clk 0:02:56.9]}
7. Bb2 {[%clk 0:03:01.5]} 7... a5 {[%clk 0:02:57.5]} 8. d4 {[%clk 0:02:55.5]}
8... a4 {[%clk 0:02:51]} 9. Nbd2 {[%clk 0:02:55.3]} 9... a3 {[%clk 0:02:45.2]}
10. Bc3 {[%clk 0:02:55.4]} 10... b5 {[%clk 0:02:45.9]} 11. c5 {[%clk 0:02:53.9]}
11... Na6 {[%clk 0:02:34.2]} 12. b4 {[%clk 0:02:54]} 12... Nc7 {[%clk
0:02:34.6]} 13. Qb3 {[%clk 0:02:49.3]} 13... Ne4 {[%clk 0:02:27]} 14. Nxe4
{[%clk 0:02:47.5]} 14... dxe4 {[%clk 0:02:27.9]} 15. Ne5 {[%clk 0:02:48.1]}
15... Qd5 {[%clk 0:02:01.1]} 16. f3 {[%clk 0:02:35.1]} 16... f6 {[%clk
0:01:21.9]} 17. Nxc6 {[%clk 0:02:15.9]} 17... Qxc6 {[%clk 0:01:18.3]} 18. fxe4
{[%clk 0:02:15.9]} 18... Bb7 {[%clk 0:01:17]} 19. Rad1 {[%clk 0:02:10.5]} 19...
Rad8 {[%clk 0:01:16.7]} 20. Qxa3 {[%clk 0:02:08.5]} 20... Kh8 {[%clk 0:01:16.5]}
21. Qb3 {[%clk 0:02:08.6]} 21... f5 {[%clk 0:01:14]} 22. d5 {[%clk 0:02:01.3]}
22... exd5 {[%clk 0:01:14.2]} 23. exf5 {[%clk 0:02:01.5]} 23... Bf6 {[%clk
0:01:12.8]} 24. Bxf6 {[%clk 0:02:00.5]} 24... Qxf6 {[%clk 0:01:13.7]} 25. a4
{[%clk 0:01:31.5]} 25... Bc6 {[%clk 0:01:12.2]} 26. axb5 {[%clk 0:01:31.3]}
26... Nxb5 {[%clk 0:01:03.9]} 27. e3 {[%clk 0:01:22.9]} 27... Qe5 {[%clk
0:00:53]} 28. g4 {[%clk 0:01:10.1]} 28... Ra8 {[%clk 0:00:34.6]} 29. Bxd5 {[%clk
0:00:57]} 29... Ra3 {[%clk 0:00:34.9]} 30. Qc4 {[%clk 0:00:57.5]} 30... Qxe3+
{[%clk 0:00:33.5]} 31. Kh1 {[%clk 0:00:57]} 31... Rc3 {[%clk 0:00:30.6]} 32. Qf4
{[%clk 0:00:51.8]} 32... Bxd5+ {[%clk 0:00:29.2]} 33. Rxd5 {[%clk 0:00:52.7]}
33... Qe2 {[%clk 0:00:27.7]} 34. Rfd1 {[%clk 0:00:40.5]} 34... Rc2 {[%clk
0:00:25]} 35. Qg3 {[%clk 0:00:37.6]} 35... Nc3 {[%clk 0:00:20.8]} 36. Rd8 {[%clk
0:00:37.1]} 36... Qe4+ {[%clk 0:00:21.2]} 37. Kg1 {[%clk 0:00:30.4]} 37... Ne2+
{[%clk 0:00:21.8]} 38. Kf1 {[%clk 0:00:29.2]} 38... Nxg3+ {[%clk 0:00:22.4]} 39.
hxg3 {[%clk 0:00:29.8]} 39... Qf3+ {[%clk 0:00:22.8]} 40. Kg1 {[%clk 0:00:29.9]}
40... Qg2# {[%clk 0:00:23.2]} 0-1

[Event "Early-Titled-Tuesday-Blitz-January-23-2024"]
[Site "Chess.com"]
[Date "2024.01.23"]
[Round "4"]
[White "Reality-Stone"]
[Black "Road2GM3000"]
[Result "1-0"]
[WhiteElo "2618"]
[BlackElo "2436"]
[TimeControl "180+1"]
[EndTime "8:38:13 PST"]
[Termination "Reality-Stone won by resignation"]

1. Nf3 {[%clk 0:03:00.9]} 1... d5 {[%clk 0:02:59.7]} 2. g3 {[%clk 0:03:00.7]}
2... Nf6 {[%clk 0:02:59.4]} 3. Bg2 {[%clk 0:02:59.5]} 3... c6 {[%clk 0:03:00.1]}
4. O-O {[%clk 0:02:59]} 4... Bg4 {[%clk 0:03:00.8]} 5. d4 {[%clk 0:02:58.1]}
5... e6 {[%clk 0:03:00.5]} 6. c4 {[%clk 0:02:58.2]} 6... Nbd7 {[%clk 0:03:00.9]}
7. Nc3 {[%clk 0:02:58.2]} 7... Be7 {[%clk 0:03:01.1]} 8. b3 {[%clk 0:02:55.1]}
8... O-O {[%clk 0:03:01.1]} 9. Bb2 {[%clk 0:02:54.6]} 9... h6 {[%clk 0:02:56.8]}
10. Nh4 {[%clk 0:02:41.7]} 10... Ne8 {[%clk 0:02:42.2]} 11. Nf3 {[%clk
0:02:39.1]} 11... Nd6 {[%clk 0:02:40.4]} 12. Ne5 {[%clk 0:02:35.7]} 12... Bf5
{[%clk 0:02:37.2]} 13. Nxd7 {[%clk 0:02:33.2]} 13... Qxd7 {[%clk 0:02:36.3]} 14.
c5 {[%clk 0:02:33.9]} 14... Ne4 {[%clk 0:02:34.6]} 15. Nxe4 {[%clk 0:02:30]}
15... Bxe4 {[%clk 0:02:32.7]} 16. f3 {[%clk 0:02:27.5]} 16... Bg6 {[%clk
0:02:31.2]} 17. e4 {[%clk 0:02:27.2]} 17... Rad8 {[%clk 0:02:21.8]} 18. Qe2
{[%clk 0:02:23.8]} 18... Bf6 {[%clk 0:02:17.2]} 19. Rad1 {[%clk 0:02:22.6]}
19... b6 {[%clk 0:02:11.3]} 20. b4 {[%clk 0:02:19.5]} 20... a5 {[%clk
0:02:03.9]} 21. bxa5 {[%clk 0:02:05]} 21... bxc5 {[%clk 0:01:58.2]} 22. dxc5
{[%clk 0:01:58]} 22... Qa7 {[%clk 0:01:54]} 23. Bxf6 {[%clk 0:01:56.3]} 23...
gxf6 {[%clk 0:01:54.2]} 24. Qe3 {[%clk 0:01:49.9]} 24... Qxa5 {[%clk 0:01:49.4]}
25. exd5 {[%clk 0:01:44.2]} 25... exd5 {[%clk 0:01:47.2]} 26. Qxh6 {[%clk
0:01:38.1]} 26... Rfe8 {[%clk 0:01:29]} 27. Kh1 {[%clk 0:01:21]} 27... Re2
{[%clk 0:01:23]} 28. h4 {[%clk 0:01:12.8]} 28... Qxa2 {[%clk 0:01:21.5]} 29. h5
{[%clk 0:01:06.8]} 29... Bc2 {[%clk 0:01:00.4]} 30. Rd4 {[%clk 0:00:58.6]} 30...
f5 {[%clk 0:00:47]} 31. Qg5+ {[%clk 0:00:49.1]} 31... Kh7 {[%clk 0:00:44.8]} 32.
Qxd8 {[%clk 0:00:45.7]} 32... Be4 {[%clk 0:00:35.8]} 33. fxe4 {[%clk 0:00:34.6]}
33... Rxg2 {[%clk 0:00:35.6]} 34. Qh4 {[%clk 0:00:32.9]} 34... Qe2 {[%clk
0:00:28.1]} 35. Rdd1 {[%clk 0:00:31.4]} 35... dxe4 {[%clk 0:00:20.7]} 36. Qh3
{[%clk 0:00:29.8]} 36... Rf2 {[%clk 0:00:17.9]} 37. Rxf2 {[%clk 0:00:29.9]}
37... Qxd1+ {[%clk 0:00:16.2]} 38. Rf1 {[%clk 0:00:30.3]} 38... Qd5 {[%clk
0:00:15]} 39. Qxf5+ {[%clk 0:00:30]} 1-0

[Event "Early-Titled-Tuesday-Blitz-January-23-2024"]
[Site "Chess.com"]
[Date "2024.01.23"]
[Round "4"]
[White "Jojo_898"]
[Black "AlexOstrovskiy"]
[Result "0-1"]
[WhiteElo "2447"]
[BlackElo "2788"]
[TimeControl "180+1"]
[EndTime "8:38:13 PST"]
[Termination "AlexOstrovskiy won by resignation"]

1. e4 {[%clk 0:03:00.9]} 1... d5 {[%clk 0:02:57.5]} 2. exd5 {[%clk 0:02:59.8]}
2... Nf6 {[%clk 0:02:57.8]} 3. c4 {[%clk 0:02:58.9]} 3... e6 {[%clk 0:02:56.2]}
4. dxe6 {[%clk 0:02:56.8]} 4... Bxe6 {[%clk 0:02:57.1]} 5. d4 {[%clk 0:02:55.6]}
5... Bb4+ {[%clk 0:02:55.1]} 6. Nc3 {[%clk 0:02:54.7]} 6... Ne4 {[%clk 0:02:30]}
7. Ne2 {[%clk 0:02:36]} 7... Bxc4 {[%clk 0:02:24.7]} 8. Qc2 {[%clk 0:02:11.2]}
8... Nxc3 {[%clk 0:02:03.7]} 9. bxc3 {[%clk 0:02:10.1]} 9... Bd6 {[%clk
0:01:56]} 10. Qe4+ {[%clk 0:01:46]} 10... Kf8 {[%clk 0:01:35.2]} 11. Qxb7 {[%clk
0:01:45.1]} 11... Nd7 {[%clk 0:01:35.3]} 12. Ng3 {[%clk 0:01:40.5]} 12... Rb8
{[%clk 0:01:27.6]} 13. Qc6 {[%clk 0:01:39.9]} 13... Qe7+ {[%clk 0:01:15.7]} 14.
Be3 {[%clk 0:01:36.7]} 14... Bxf1 {[%clk 0:01:11.9]} 15. Nxf1 {[%clk 0:01:36.6]}
15... h5 {[%clk 0:01:07.3]} 16. h4 {[%clk 0:01:24.5]} 16... Rh6 {[%clk
0:01:03.3]} 17. Qf3 {[%clk 0:01:12.1]} 17... Nf6 {[%clk 0:00:54.5]} 18. Nd2
{[%clk 0:00:57.8]} 18... Ng4 {[%clk 0:00:50.8]} 19. O-O {[%clk 0:00:58.1]} 19...
Qxh4 {[%clk 0:00:26.1]} 20. Qh3 {[%clk 0:00:58.1]} 20... Qxh3 {[%clk 0:00:19.2]}
21. gxh3 {[%clk 0:00:59]} 21... Nxe3 {[%clk 0:00:19.8]} 22. fxe3 {[%clk
0:00:59.5]} 22... Rg6+ {[%clk 0:00:19.7]} 23. Kh1 {[%clk 0:00:55.3]} 23... Rb2
{[%clk 0:00:16.8]} 24. Rf2 {[%clk 0:00:47.7]} 24... Rg3 {[%clk 0:00:16.7]} 25.
Raf1 {[%clk 0:00:25.6]} 25... Rxh3+ {[%clk 0:00:16.9]} 26. Kg2 {[%clk
0:00:25.6]} 26... Rg3+ {[%clk 0:00:17.3]} 27. Kh1 {[%clk 0:00:26.2]} 27... f6
{[%clk 0:00:16.8]} 28. e4 {[%clk 0:00:24.5]} 28... Rd3 {[%clk 0:00:11.3]} 29.
Nb1 {[%clk 0:00:13.5]} 29... Rxf2 {[%clk 0:00:10.1]} 0-1

[Event "Early-Titled-Tuesday-Blitz-January-23-2024"]
[Site "Chess.com"]
[Date "2024.01.23"]
[Round "4"]
[White "TitarovVasiliYouTube"]
[Black "KVAIDAN"]
[Result "1-0"]
[WhiteElo "2554"]
[BlackElo "2356"]
[TimeControl "180+1"]
[EndTime "8:38:14 PST"]
[Termination "TitarovVasiliYouTube won by checkmate"]

1. e4 {[%clk 0:02:58.5]} 1... e5 {[%clk 0:02:58.3]} 2. Nc3 {[%clk 0:02:57]} 2...
Nf6 {[%clk 0:02:56.1]} 3. Bc4 {[%clk 0:02:53.4]} 3... Be7 {[%clk 0:02:54.8]} 4.
Nf3 {[%clk 0:02:53.6]} 4... O-O {[%clk 0:02:51.9]} 5. Nxe5 {[%clk 0:02:50.3]}
5... Nxe4 {[%clk 0:02:49.7]} 6. Nxe4 {[%clk 0:02:49.7]} 6... d5 {[%clk
0:02:49.3]} 7. O-O {[%clk 0:02:45.3]} 7... dxc4 {[%clk 0:02:41.2]} 8. Nxc4
{[%clk 0:02:45.3]} 8... Bf5 {[%clk 0:02:40.1]} 9. d3 {[%clk 0:02:45]} 9... Nc6
{[%clk 0:02:40.2]} 10. Be3 {[%clk 0:02:40.5]} 10... Qd5 {[%clk 0:02:39.6]} 11.
Nc3 {[%clk 0:02:18.6]} 11... Qe6 {[%clk 0:02:36.7]} 12. Qf3 {[%clk 0:02:14.7]}
12... Qg6 {[%clk 0:02:29.3]} 13. Nd5 {[%clk 0:02:11.6]} 13... Bd8 {[%clk
0:02:28.1]} 14. Bc5 {[%clk 0:02:03.5]} 14... Re8 {[%clk 0:02:21.8]} 15. Rfe1
{[%clk 0:02:03.6]} 15... Bh4 {[%clk 0:02:19.2]} 16. Nxc7 {[%clk 0:01:56.8]}
16... Bg4 {[%clk 0:02:14]} 17. Qf4 {[%clk 0:01:51.9]} 17... Rec8 {[%clk
0:01:59.3]} 18. Nd5 {[%clk 0:01:49]} 18... h5 {[%clk 0:01:49.5]} 19. h3 {[%clk
0:01:23.7]} 19... Bxh3 {[%clk 0:01:45.8]} 20. g3 {[%clk 0:01:11.9]} 20... Bg5
{[%clk 0:01:42.5]} 21. Qd6 {[%clk 0:01:09.1]} 21... Be6 {[%clk 0:01:40.3]} 22.
Nf4 {[%clk 0:00:59.6]} 22... Bxf4 {[%clk 0:01:34.4]} 23. Qxf4 {[%clk 0:01:00.5]}
23... b5 {[%clk 0:01:19.9]} 24. Ne5 {[%clk 0:00:47.7]} 24... Nxe5 {[%clk
0:01:17.4]} 25. Rxe5 {[%clk 0:00:48.6]} 25... Rc6 {[%clk 0:01:08.5]} 26. Rg5
{[%clk 0:00:47.4]} 26... Qh6 {[%clk 0:01:06]} 27. Bd4 {[%clk 0:00:47.2]} 27...
f6 {[%clk 0:00:59]} 28. Qxf6 {[%clk 0:00:38.6]} 28... Qxf6 {[%clk 0:00:55]} 29.
Bxf6 {[%clk 0:00:38.9]} 29... Rc7 {[%clk 0:00:43.7]} 30. Be5 {[%clk 0:00:38]}
30... Rd7 {[%clk 0:00:37.9]} 31. Re1 {[%clk 0:00:36.5]} 31... Kf7 {[%clk
0:00:37]} 32. Rxg7+ {[%clk 0:00:35.3]} 32... Ke8 {[%clk 0:00:37.3]} 33. Rg6
{[%clk 0:00:27.3]} 33... Bf7 {[%clk 0:00:28.5]} 34. Rh6 {[%clk 0:00:27.8]} 34...
Kf8 {[%clk 0:00:25.4]} 35. Rh8+ {[%clk 0:00:24.5]} 35... Bg8 {[%clk 0:00:25.8]}
36. Rxh5 {[%clk 0:00:25]} 36... Kf7 {[%clk 0:00:23.9]} 37. Rf5+ {[%clk
0:00:23.5]} 37... Ke6 {[%clk 0:00:23.9]} 38. Rf6+ {[%clk 0:00:24.1]} 38... Kd5
{[%clk 0:00:24.2]} 39. Bc3 {[%clk 0:00:23]} 39... a5 {[%clk 0:00:22.5]} 40. Re5#
{[%clk 0:00:23.2]} 1-0

[Event "Early-Titled-Tuesday-Blitz-January-23-2024"]
[Site "Chess.com"]
[Date "2024.01.23"]
[Round "4"]
[White "starworld123"]
[Black "Young_Catalan_Player09"]
[Result "1-0"]
[WhiteElo "2844"]
[BlackElo "2564"]
[TimeControl "180+1"]
[EndTime "8:38:15 PST"]
[Termination "starworld123 won by resignation"]

1. Nf3 {[%clk 0:03:00.9]} 1... d5 {[%clk 0:02:56.5]} 2. e3 {[%clk 0:03:00.7]}
2... Nf6 {[%clk 0:02:55.1]} 3. d4 {[%clk 0:02:57]} 3... g6 {[%clk 0:02:51.8]} 4.
b4 {[%clk 0:02:55.3]} 4... Bg7 {[%clk 0:02:51.6]} 5. c4 {[%clk 0:02:52]} 5...
O-O {[%clk 0:02:50.8]} 6. Nbd2 {[%clk 0:02:48.8]} 6... a5 {[%clk 0:02:49.2]} 7.
b5 {[%clk 0:02:49]} 7... c6 {[%clk 0:02:48.1]} 8. a4 {[%clk 0:02:39.5]} 8... Bf5
{[%clk 0:02:43.1]} 9. Bb2 {[%clk 0:02:30.9]} 9... Nbd7 {[%clk 0:02:41.2]} 10.
Be2 {[%clk 0:02:19.9]} 10... Ne4 {[%clk 0:02:32.9]} 11. O-O {[%clk 0:02:16.4]}
11... Ndf6 {[%clk 0:02:12.9]} 12. Nb3 {[%clk 0:02:05.1]} 12... cxb5 {[%clk
0:01:50.1]} 13. cxb5 {[%clk 0:01:57.2]} 13... Qb6 {[%clk 0:01:46.3]} 14. Ne5
{[%clk 0:01:44.6]} 14... Rfc8 {[%clk 0:01:43.8]} 15. Bd3 {[%clk 0:01:34.4]}
15... Rc7 {[%clk 0:01:24]} 16. Ba3 {[%clk 0:01:16.5]} 16... Rac8 {[%clk
0:01:13.8]} 17. Bc5 {[%clk 0:01:01.8]} 17... Nxc5 {[%clk 0:01:12]} 18. dxc5
{[%clk 0:01:02.6]} 18... Qe6 {[%clk 0:01:10]} 19. Nf3 {[%clk 0:00:57.4]} 19...
Bxd3 {[%clk 0:00:49]} 20. Qxd3 {[%clk 0:00:58.3]} 20... Ne4 {[%clk 0:00:49.2]}
21. Nfd4 {[%clk 0:00:59]} 21... Qd7 {[%clk 0:00:46.8]} 22. c6 {[%clk 0:00:53.7]}
22... bxc6 {[%clk 0:00:45.5]} 23. bxc6 {[%clk 0:00:53.8]} 23... Qe8 {[%clk
0:00:36.8]} 24. Nxa5 {[%clk 0:00:50.3]} 24... e5 {[%clk 0:00:35]} 25. Nb5 {[%clk
0:00:50.2]} 25... Rxc6 {[%clk 0:00:33.1]} 26. Nxc6 {[%clk 0:00:51.1]} 26... Qxc6
{[%clk 0:00:31.3]} 27. Na7 {[%clk 0:00:47.4]} 27... Qc4 {[%clk 0:00:31.5]} 28.
Qxc4 {[%clk 0:00:46.8]} 28... Rxc4 {[%clk 0:00:32.4]} 29. a5 {[%clk 0:00:47.2]}
29... Nc5 {[%clk 0:00:30.7]} 30. Nc6 {[%clk 0:00:40.4]} 30... Nb3 {[%clk
0:00:27.8]} 31. Ra3 {[%clk 0:00:28.1]} 31... Nd2 {[%clk 0:00:25]} 32. a6 {[%clk
0:00:21.9]} 32... Nxf1 {[%clk 0:00:19.8]} 33. a7 {[%clk 0:00:20.7]} 33... Ng3
{[%clk 0:00:18.3]} 34. a8=Q+ {[%clk 0:00:19.7]} 34... Bf8 {[%clk 0:00:17.4]} 35.
hxg3 {[%clk 0:00:20.3]} 35... Rc1+ {[%clk 0:00:16.3]} 36. Kh2 {[%clk 0:00:21.1]}
36... Rh1+ {[%clk 0:00:17.1]} 37. Kxh1 {[%clk 0:00:21.2]} 1-0